{"text_format":"1","workbook":"xlsx","n_sheets":4,"sheets":["Produktionsanlæg","Distributionsanlæg","Fællesfunktionsanlæg","Drop downliste"],"not_rendered":{"charts":0,"images":0,"macros":1,"external_links":0,"defined_names":2,"comments":0,"pivot_tables":0},"unopened":[],"bounds":{"document_bytes":16777216,"sheet_cells":100000,"rows_first":2000,"rows_last":500,"rows_between":2000,"halvings":0,"cell_chars":16384,"cell_head_chars":4096},"cells_cut":0,"cells_raw":0,"read":"whole","date_system":"1900"}

{"sheet":"Produktionsanlæg","index":0,"n_rows":431,"n_cols":6,"rows_kept":431,"cut":false,"hidden":false,"merged":[[0,5,1,5],[0,0,1,0],[0,1,1,1],[0,2,1,2],[0,3,1,3],[0,4,1,4]]}
["Produktionsanlæg","Enhed","Standard-levetid","Samlet mængde per 31/12-2014","Samlet mængde per 31/12-2015","Bemærk-ninger"]
[]
["Boringer"]
["Boring (inkl. etablering, forerør, filter og prøvepumpning)","dybdemeter",30,1074,{"$f":"1074+423","v":1497},"Polkatal"]
["Råvandsstationer"]
["Råvandsstation komplet montering og boringshus/tørbrønd","stk.",30,0,5]
["Instrumenter (flowmåler+tryk transducer+alarmer)","stk.",10,0,0]
["Pumpe inkl. stigrør og forerørsforsejlinger mv. - 1","m³/h ",15,38,38.5]
["Pumpe inkl. stigrør og forerørsforsejlinger mv. - 2","m³/h ",15,32,39]
["Pumpe inkl. stigrør og forerørsforsejlinger mv. - 3","m³/h ",15,23,27]
["Pumpe inkl. stigrør og forerørsforsejlinger mv. - 4","m³/h ",15,21,21]
["Pumpe inkl. stigrør og forerørsforsejlinger mv. - 5","m³/h ",15,48,51]
["Pumpe inkl. stigrør og forerørsforsejlinger mv. - 6","m³/h ",15,27,30]
["Pumpe inkl. stigrør og forerørsforsejlinger mv. - 7","m³/h ",15,32,32]
["Pumpe inkl. stigrør og forerørsforsejlinger mv. - 8","m³/h ",15,0,0]
["Pumpe inkl. stigrør og forerørsforsejlinger mv. - 9","m³/h ",15,38,38]
["Pumpe inkl. stigrør og forerørsforsejlinger mv. - 10","m³/h ",15,34,34]
["Pumpe inkl. stigrør og forerørsforsejlinger mv. - 11","m³/h ",15,36,36]
["Pumpe inkl. stigrør og forerørsforsejlinger mv. - 12","m³/h ",15,29,29]
["Pumpe inkl. stigrør og forerørsforsejlinger mv. - 13","m³/h ",15,30,30]
["Pumpe inkl. stigrør og forerørsforsejlinger mv. - 14","m³/h ",15,18,18]
["Pumpe inkl. stigrør og forerørsforsejlinger mv. - 15","m³/h ",15,0,0]
["Pumpe inkl. stigrør og forerørsforsejlinger mv. - 16","m³/h ",15,0,0]
["Pumpe inkl. stigrør og forerørsforsejlinger mv. - 17","m³/h ",15,21,21]
["Pumpe inkl. stigrør og forerørsforsejlinger mv. - 18","m³/h ",15,25,25]
["Pumpe inkl. stigrør og forerørsforsejlinger mv. - 19","m³/h ",15,0,0]
["Pumpe inkl. stigrør og forerørsforsejlinger mv. - 20","m³/h ",15,21,21]
["Pumpe inkl. stigrør og forerørsforsejlinger mv. - 21","m³/h ",15,46,46]
["Pumpe inkl. stigrør og forerørsforsejlinger mv. - 22","m³/h ",15,46,46]
["Pumpe inkl. stigrør og forerørsforsejlinger mv. - 23","m³/h ",15,32,32]
["Pumpe inkl. stigrør og forerørsforsejlinger mv. - 24","m³/h ",15,0,0]
["Pumpe inkl. stigrør og forerørsforsejlinger mv. - 25","m³/h ",15,0,0]
["Pumpe inkl. stigrør og forerørsforsejlinger mv. - 26","m³/h ",15,0,0]
["Pumpe inkl. stigrør og forerørsforsejlinger mv. - 27","m³/h ",15,0,0]
["Pumpe inkl. stigrør og forerørsforsejlinger mv. - 28","m³/h ",15,0,0]
["Pumpe inkl. stigrør og forerørsforsejlinger mv. - 29","m³/h ",15,0,0]
["Pumpe inkl. stigrør og forerørsforsejlinger mv. - 30","m³/h ",15,0,0]
["Erstatninger (OBS ingen øst-tillæg eller øvrige tillæg) ","stk.",30,20,20]
["Hegn","stk.",15,0,0]
["Elanlæg","boring",20,19,{"$f":"19+4","v":23}]
["SRO anlæg","boring",10,19,19]
["Råvandsledninger - Land"]
["Ø 50mm < Ledningsnet ≤ Ø110 mm","meter",75,294.58,{"$f":"5878+295","v":6173}]
["Ø110 mm < Ledningsnet ≤ Ø 250 mm","meter",75,7994.18,7994]
["Ø 250 mm < Ledningsnet ≤ Ø 500mm","meter",75,3476.82,3477]
["Ledningsnet > Ø 500 mm","meter",75,0,0]
["Råvandsledninger - By"]
["Ø 50mm < Ledningsnet ≤ Ø110 mm","meter",75,0,0]
["Ø110 mm < Ledningsnet ≤ Ø 250 mm","meter",75,0,0]
["Ø 250 mm < Ledningsnet ≤ Ø 500mm","meter",75,0,0]
["Ledningsnet > Ø 500 mm","meter",75,0,0]
["Råvandsledninger - City"]
["Ø 50mm < Ledningsnet ≤ Ø110 mm","meter",75,0]
["Ø110 mm < Ledningsnet ≤ Ø 250 mm","meter",75,0]
["Ø 250 mm < Ledningsnet ≤ Ø 500mm","meter",75,0]
["Ledningsnet > Ø 500 mm","meter",75,0]
["Vandværk 1",null,null,null,null,"Deigvad"]
["Beluftningsanlæg, iltningstrappe, Konstruktioner","m³/h ",50,0,0]
["Beluftningsanlæg, iltningstrappe, Mek./EL","m³/h ",25,0,0]
["Beluftningsanlæg, ika-beluftning, Konstruktioner","m³/h ",50,0,0]
["Beluftningsanlæg, ika-beluftning, Mek./EL","m³/h ",25,0,0]
["Beluftningsanlæg, bundbeluftbning, Konstruktioner","m³/h ",50,320,320]
["Beluftningsanlæg, bundbeluftbning, Mek./EL","m³/h ",25,320,320]
["Beluftningsanlæg, rislebakke, Konstruktioner","m³/h ",50,0,0]
["Beluftningsanlæg, rislebakke, Mek./EL","m³/h ",25,0,0]
["Beluftningsanlæg, kompressorbeluftning","m³/h ",25,320,320]
["Beluftningsanlæg, ren ilt","m³/h ",25,0,0]
["Behandlingsanlæg, kalk anlæg","m³/h ",25,0,0]
["Behandlingsanlæg, luddosering","m³/h ",25,0,0]
["Filteranlæg, åbne filtre, enkelt filtrering, Konstruktioner","m³/h ",50,0,0]
["Filteranlæg, åbne filtre, enkelt filtrering, Mek./EL","m³/h ",25,0,0]
["Filteranlæg, åbne filtre, dobbelt filtrering, Konstruktioner","m³/h ",50,360,360]
["Filteranlæg, åbne filtre, dobbelt filtrering, Mek./EL","m³/h ",25,360,360]
["Filteranlæg, trykfiltre, enkelt filtrering","m³/h ",25,0,0]
["Filteranlæg, trykfiltre, dobbelt filtrering","m³/h ",25,0,0]
["Rentvandsbeholder  insitu støbt","m³",50,2100,2100]
["Rentvandsbeholder  element","m³",50,0,0]
["Udpumpningsanlæg, rentvandspumper på vandværk","m³/h ",25,820,820]
["Udpumpningsanlæg, frekvensomformer","kW",25,315,315]
["Udpumpningsanlæg, Hydrofor","liter",25,4000,4000]
["Skyllevand-/slamhåndteringsanlæg - lukkede betonbeholdere","m³",50,0,0]
["Skyllevand-/slamhåndteringsanl. - åbne med faste sider/bund","m³",50,400,400]
["Skyllevand-/slamhåndteringsanlæg - jordbassiner","m³",50,0,0]
["Skyllevandsbehandling, inkl. UV-filter mv., Mek./EL","m³/h.",25,0,0]
["Skyllevandsbehandling, inkl. UV-filter mv., SRO","m³/h.",10,0,0]
["Nødstrømsanlæg på vandværk","kW",25,0,0]
["Elanlæg og SRO-anlæg - vandværk, Elanlæg","m³/h.",25,820,820]
["Elanlæg og SRO-anlæg - vandværk, SRO","m³/h.",10,820,820]
["Vandværk 2",null,null,null,null,"Marke"]
["Beluftningsanlæg, iltningstrappe, Konstruktioner","m³/h ",50,0,0]
["Beluftningsanlæg, iltningstrappe, Mek./EL","m³/h ",25,0,0]
["Beluftningsanlæg, ika-beluftning, Konstruktioner","m³/h ",50,0,0]
["Beluftningsanlæg, ika-beluftning, Mek./EL","m³/h ",25,0,0]
["Beluftningsanlæg, bundbeluftbning, Konstruktioner","m³/h ",50,0,0]
["Beluftningsanlæg, bundbeluftbning, Mek./EL","m³/h ",25,0,0]
["Beluftningsanlæg, rislebakke, Konstruktioner","m³/h ",50,0,0]
["Beluftningsanlæg, rislebakke, Mek./EL","m³/h ",25,0,0]
["Beluftningsanlæg, kompressorbeluftning","m³/h ",25,0,0]
["Beluftningsanlæg, ren ilt","m³/h ",25,0,0]
["Behandlingsanlæg, kalk anlæg","m³/h ",25,0,0]
["Behandlingsanlæg, luddosering","m³/h ",25,0,0]
["Filteranlæg, åbne filtre, enkelt filtrering, Konstruktioner","m³/h ",50,0,0]
["Filteranlæg, åbne filtre, enkelt filtrering, Mek./EL","m³/h ",25,0,0]
["Filteranlæg, åbne filtre, dobbelt filtrering, Konstruktioner","m³/h ",50,0,0]
["Filteranlæg, åbne filtre, dobbelt filtrering, Mek./EL","m³/h ",25,0,0]
["Filteranlæg, trykfiltre, enkelt filtrering","m³/h ",25,0,0]
["Filteranlæg, trykfiltre, dobbelt filtrering","m³/h ",25,0,0]
["Rentvandsbeholder  insitu støbt","m³",50,400,400]
["Rentvandsbeholder  element","m³",50,0,0]
["Udpumpningsanlæg, rentvandspumper på vandværk","m³/h ",25,360,360]
["Udpumpningsanlæg, frekvensomformer","kW",25,120,120]
["Udpumpningsanlæg, Hydrofor","liter",25,10000,10000]
["Skyllevand-/slamhåndteringsanlæg - lukkede betonbeholdere","m³",50,0,0]
["Skyllevand-/slamhåndteringsanl. - åbne med faste sider/bund","m³",50,0,0]
["Skyllevand-/slamhåndteringsanlæg - jordbassiner","m³",50,0,0]
["Skyllevandsbehandling, inkl. UV-filter mv., Mek./EL","m³/h.",25,0,0]
["Skyllevandsbehandling, inkl. UV-filter mv., SRO","m³/h.",10,0,0]
["Nødstrømsanlæg på vandværk","kW",25,0,0]
["Elanlæg og SRO-anlæg - vandværk, Elanlæg","m³/h.",25,360,360]
["Elanlæg og SRO-anlæg - vandværk, SRO","m³/h.",10,360,360]
["Vandværk 3",null,null,null,null,"Sejerø1"]
["Beluftningsanlæg, iltningstrappe, Konstruktioner","m³/h ",50,0]
["Beluftningsanlæg, iltningstrappe, Mek./EL","m³/h ",25,0]
["Beluftningsanlæg, ika-beluftning, Konstruktioner","m³/h ",50,0]
["Beluftningsanlæg, ika-beluftning, Mek./EL","m³/h ",25,0]
["Beluftningsanlæg, bundbeluftbning, Konstruktioner","m³/h ",50,0]
["Beluftningsanlæg, bundbeluftbning, Mek./EL","m³/h ",25,0]
["Beluftningsanlæg, rislebakke, Konstruktioner","m³/h ",50,0,10]
["Beluftningsanlæg, rislebakke, Mek./EL","m³/h ",25,0,10]
["Beluftningsanlæg, kompressorbeluftning","m³/h ",25,0]
["Beluftningsanlæg, ren ilt","m³/h ",25,0]
["Behandlingsanlæg, kalk anlæg","m³/h ",25,0]
["Behandlingsanlæg, luddosering","m³/h ",25,0]
["Filteranlæg, åbne filtre, enkelt filtrering, Konstruktioner","m³/h ",50,0]
["Filteranlæg, åbne filtre, enkelt filtrering, Mek./EL","m³/h ",25,0]
["Filteranlæg, åbne filtre, dobbelt filtrering, Konstruktioner","m³/h ",50,0,10]
["Filteranlæg, åbne filtre, dobbelt filtrering, Mek./EL","m³/h ",25,0,10]
["Filteranlæg, trykfiltre, enkelt filtrering","m³/h ",25,0]
["Filteranlæg, trykfiltre, dobbelt filtrering","m³/h ",25,0]
["Rentvandsbeholder  insitu støbt","m³",50,0,35]
["Rentvandsbeholder  element","m³",50,0,150]
["Udpumpningsanlæg, rentvandspumper på vandværk","m³/h ",25,0,20]
["Udpumpningsanlæg, frekvensomformer","kW",25,0]
["Udpumpningsanlæg, Hydrofor","liter",25,0,400]
["Skyllevand-/slamhåndteringsanlæg - lukkede betonbeholdere","m³",50,0]
["Skyllevand-/slamhåndteringsanl. - åbne med faste sider/bund","m³",50,0]
["Skyllevand-/slamhåndteringsanlæg - jordbassiner","m³",50,0]
["Skyllevandsbehandling, inkl. UV-filter mv., Mek./EL","m³/h.",25,0]
["Skyllevandsbehandling, inkl. UV-filter mv., SRO","m³/h.",10,0]
["Nødstrømsanlæg på vandværk","kW",25,0]
["Elanlæg og SRO-anlæg - vandværk, Elanlæg","m³/h.",25,0,20]
["Elanlæg og SRO-anlæg - vandværk, SRO","m³/h.",10,0]
["Vandværk 4",null,null,null,null,"Sejerø2"]
["Beluftningsanlæg, iltningstrappe, Konstruktioner","m³/h ",50,0]
["Beluftningsanlæg, iltningstrappe, Mek./EL","m³/h ",25,0]
["Beluftningsanlæg, ika-beluftning, Konstruktioner","m³/h ",50,0]
["Beluftningsanlæg, ika-beluftning, Mek./EL","m³/h ",25,0]
["Beluftningsanlæg, bundbeluftbning, Konstruktioner","m³/h ",50,0]
["Beluftningsanlæg, bundbeluftbning, Mek./EL","m³/h ",25,0]
["Beluftningsanlæg, rislebakke, Konstruktioner","m³/h ",50,0]
["Beluftningsanlæg, rislebakke, Mek./EL","m³/h ",25,0]
["Beluftningsanlæg, kompressorbeluftning","m³/h ",25,0,3]
["Beluftningsanlæg, ren ilt","m³/h ",25,0]
["Behandlingsanlæg, kalk anlæg","m³/h ",25,0]
["Behandlingsanlæg, luddosering","m³/h ",25,0]
["Filteranlæg, åbne filtre, enkelt filtrering, Konstruktioner","m³/h ",50,0]
["Filteranlæg, åbne filtre, enkelt filtrering, Mek./EL","m³/h ",25,0]
["Filteranlæg, åbne filtre, dobbelt filtrering, Konstruktioner","m³/h ",50,0]
["Filteranlæg, åbne filtre, dobbelt filtrering, Mek./EL","m³/h ",25,0]
["Filteranlæg, trykfiltre, enkelt filtrering","m³/h ",25,0]
["Filteranlæg, trykfiltre, dobbelt filtrering","m³/h ",25,0,3]
["Rentvandsbeholder  insitu støbt","m³",50,0]
["Rentvandsbeholder  element","m³",50,0,8]
["Udpumpningsanlæg, rentvandspumper på vandværk","m³/h ",25,0,5]
["Udpumpningsanlæg, frekvensomformer","kW",25,0]
["Udpumpningsanlæg, Hydrofor","liter",25,0,400]
["Skyllevand-/slamhåndteringsanlæg - lukkede betonbeholdere","m³",50,0]
["Skyllevand-/slamhåndteringsanl. - åbne med faste sider/bund","m³",50,0]
["Skyllevand-/slamhåndteringsanlæg - jordbassiner","m³",50,0]
["Skyllevandsbehandling, inkl. UV-filter mv., Mek./EL","m³/h.",25,0]
["Skyllevandsbehandling, inkl. UV-filter mv., SRO","m³/h.",10,0]
["Nødstrømsanlæg på vandværk","kW",25,0]
["Elanlæg og SRO-anlæg - vandværk, Elanlæg","m³/h.",25,0,5]
["Elanlæg og SRO-anlæg - vandværk, SRO","m³/h.",10,0]
["Vandværk 5",null,null,null,null,"Sejerø3"]
["Beluftningsanlæg, iltningstrappe, Konstruktioner","m³/h ",50,0]
["Beluftningsanlæg, iltningstrappe, Mek./EL","m³/h ",25,0]
["Beluftningsanlæg, ika-beluftning, Konstruktioner","m³/h ",50,0]
["Beluftningsanlæg, ika-beluftning, Mek./EL","m³/h ",25,0]
["Beluftningsanlæg, bundbeluftbning, Konstruktioner","m³/h ",50,0]
["Beluftningsanlæg, bundbeluftbning, Mek./EL","m³/h ",25,0]
["Beluftningsanlæg, rislebakke, Konstruktioner","m³/h ",50,0,0.5]
["Beluftningsanlæg, rislebakke, Mek./EL","m³/h ",25,0]
["Beluftningsanlæg, kompressorbeluftning","m³/h ",25,0]
["Beluftningsanlæg, ren ilt","m³/h ",25,0]
["Behandlingsanlæg, kalk anlæg","m³/h ",25,0]
["Behandlingsanlæg, luddosering","m³/h ",25,0]
["Filteranlæg, åbne filtre, enkelt filtrering, Konstruktioner","m³/h ",50,0,0.5]
["Filteranlæg, åbne filtre, enkelt filtrering, Mek./EL","m³/h ",25,0]
["Filteranlæg, åbne filtre, dobbelt filtrering, Konstruktioner","m³/h ",50,0]
["Filteranlæg, åbne filtre, dobbelt filtrering, Mek./EL","m³/h ",25,0]
["Filteranlæg, trykfiltre, enkelt filtrering","m³/h ",25,0]
["Filteranlæg, trykfiltre, dobbelt filtrering","m³/h ",25,0]
["Rentvandsbeholder  insitu støbt","m³",50,0,50]
["Rentvandsbeholder  element","m³",50,0]
["Udpumpningsanlæg, rentvandspumper på vandværk","m³/h ",25,0,2]
["Udpumpningsanlæg, frekvensomformer","kW",25,0]
["Udpumpningsanlæg, Hydrofor","liter",25,0,400]
["Skyllevand-/slamhåndteringsanlæg - lukkede betonbeholdere","m³",50,0]
["Skyllevand-/slamhåndteringsanl. - åbne med faste sider/bund","m³",50,0]
["Skyllevand-/slamhåndteringsanlæg - jordbassiner","m³",50,0]
["Skyllevandsbehandling, inkl. UV-filter mv., Mek./EL","m³/h.",25,0]
["Skyllevandsbehandling, inkl. UV-filter mv., SRO","m³/h.",10,0]
["Nødstrømsanlæg på vandværk","kW",25,0]
["Elanlæg og SRO-anlæg - vandværk, Elanlæg","m³/h.",25,0,2]
["Elanlæg og SRO-anlæg - vandværk, SRO","m³/h.",10,0]
["Vandværk 6",null,null,null,null,"Sejerø4"]
["Beluftningsanlæg, iltningstrappe, Konstruktioner","m³/h ",50,0]
["Beluftningsanlæg, iltningstrappe, Mek./EL","m³/h ",25,0]
["Beluftningsanlæg, ika-beluftning, Konstruktioner","m³/h ",50,0]
["Beluftningsanlæg, ika-beluftning, Mek./EL","m³/h ",25,0]
["Beluftningsanlæg, bundbeluftbning, Konstruktioner","m³/h ",50,0]
["Beluftningsanlæg, bundbeluftbning, Mek./EL","m³/h ",25,0]
["Beluftningsanlæg, rislebakke, Konstruktioner","m³/h ",50,0]
["Beluftningsanlæg, rislebakke, Mek./EL","m³/h ",25,0]
["Beluftningsanlæg, kompressorbeluftning","m³/h ",25,0]
["Beluftningsanlæg, ren ilt","m³/h ",25,0]
["Behandlingsanlæg, kalk anlæg","m³/h ",25,0]
["Behandlingsanlæg, luddosering","m³/h ",25,0]
["Filteranlæg, åbne filtre, enkelt filtrering, Konstruktioner","m³/h ",50,0]
["Filteranlæg, åbne filtre, enkelt filtrering, Mek./EL","m³/h ",25,0]
["Filteranlæg, åbne filtre, dobbelt filtrering, Konstruktioner","m³/h ",50,0]
["Filteranlæg, åbne filtre, dobbelt filtrering, Mek./EL","m³/h ",25,0]
["Filteranlæg, trykfiltre, enkelt filtrering","m³/h ",25,0]
["Filteranlæg, trykfiltre, dobbelt filtrering","m³/h ",25,0]
["Rentvandsbeholder  insitu støbt","m³",50,0]
["Rentvandsbeholder  element","m³",50,0]
["Udpumpningsanlæg, rentvandspumper på vandværk","m³/h ",25,0]
["Udpumpningsanlæg, frekvensomformer","kW",25,0]
["Udpumpningsanlæg, Hydrofor","liter",25,0]
["Skyllevand-/slamhåndteringsanlæg - lukkede betonbeholdere","m³",50,0]
["Skyllevand-/slamhåndteringsanl. - åbne med faste sider/bund","m³",50,0]
["Skyllevand-/slamhåndteringsanlæg - jordbassiner","m³",50,0]
["Skyllevandsbehandling, inkl. UV-filter mv., Mek./EL","m³/h.",25,0]
["Skyllevandsbehandling, inkl. UV-filter mv., SRO","m³/h.",10,0]
["Nødstrømsanlæg på vandværk","kW",25,0]
["Elanlæg og SRO-anlæg - vandværk, Elanlæg","m³/h.",25,0]
["Elanlæg og SRO-anlæg - vandværk, SRO","m³/h.",10,0]
["Vandværk 7"]
["Beluftningsanlæg, iltningstrappe, Konstruktioner","m³/h ",50,0]
["Beluftningsanlæg, iltningstrappe, Mek./EL","m³/h ",25,0]
["Beluftningsanlæg, ika-beluftning, Konstruktioner","m³/h ",50,0]
["Beluftningsanlæg, ika-beluftning, Mek./EL","m³/h ",25,0]
["Beluftningsanlæg, bundbeluftbning, Konstruktioner","m³/h ",50,0]
["Beluftningsanlæg, bundbeluftbning, Mek./EL","m³/h ",25,0]
["Beluftningsanlæg, rislebakke, Konstruktioner","m³/h ",50,0]
["Beluftningsanlæg, rislebakke, Mek./EL","m³/h ",25,0]
["Beluftningsanlæg, kompressorbeluftning","m³/h ",25,0]
["Beluftningsanlæg, ren ilt","m³/h ",25,0]
["Behandlingsanlæg, kalk anlæg","m³/h ",25,0]
["Behandlingsanlæg, luddosering","m³/h ",25,0]
["Filteranlæg, åbne filtre, enkelt filtrering, Konstruktioner","m³/h ",50,0]
["Filteranlæg, åbne filtre, enkelt filtrering, Mek./EL","m³/h ",25,0]
["Filteranlæg, åbne filtre, dobbelt filtrering, Konstruktioner","m³/h ",50,0]
["Filteranlæg, åbne filtre, dobbelt filtrering, Mek./EL","m³/h ",25,0]
["Filteranlæg, trykfiltre, enkelt filtrering","m³/h ",25,0]
["Filteranlæg, trykfiltre, dobbelt filtrering","m³/h ",25,0]
["Rentvandsbeholder  insitu støbt","m³",50,0]
["Rentvandsbeholder  element","m³",50,0]
["Udpumpningsanlæg, rentvandspumper på vandværk","m³/h ",25,0]
["Udpumpningsanlæg, frekvensomformer","kW",25,0]
["Udpumpningsanlæg, Hydrofor","liter",25,0]
["Skyllevand-/slamhåndteringsanlæg - lukkede betonbeholdere","m³",50,0]
["Skyllevand-/slamhåndteringsanl. - åbne med faste sider/bund","m³",50,0]
["Skyllevand-/slamhåndteringsanlæg - jordbassiner","m³",50,0]
["Skyllevandsbehandling, inkl. UV-filter mv., Mek./EL","m³/h.",25,0]
["Skyllevandsbehandling, inkl. UV-filter mv., SRO","m³/h.",10,0]
["Nødstrømsanlæg på vandværk","kW",25,0]
["Elanlæg og SRO-anlæg - vandværk, Elanlæg","m³/h.",25,0]
["Elanlæg og SRO-anlæg - vandværk, SRO","m³/h.",10,0]
["Vandværk 8"]
["Beluftningsanlæg, iltningstrappe, Konstruktioner","m³/h ",50,0]
["Beluftningsanlæg, iltningstrappe, Mek./EL","m³/h ",25,0]
["Beluftningsanlæg, ika-beluftning, Konstruktioner","m³/h ",50,0]
["Beluftningsanlæg, ika-beluftning, Mek./EL","m³/h ",25,0]
["Beluftningsanlæg, bundbeluftbning, Konstruktioner","m³/h ",50,0]
["Beluftningsanlæg, bundbeluftbning, Mek./EL","m³/h ",25,0]
["Beluftningsanlæg, rislebakke, Konstruktioner","m³/h ",50,0]
["Beluftningsanlæg, rislebakke, Mek./EL","m³/h ",25,0]
["Beluftningsanlæg, kompressorbeluftning","m³/h ",25,0]
["Beluftningsanlæg, ren ilt","m³/h ",25,0]
["Behandlingsanlæg, kalk anlæg","m³/h ",25,0]
["Behandlingsanlæg, luddosering","m³/h ",25,0]
["Filteranlæg, åbne filtre, enkelt filtrering, Konstruktioner","m³/h ",50,0]
["Filteranlæg, åbne filtre, enkelt filtrering, Mek./EL","m³/h ",25,0]
["Filteranlæg, åbne filtre, dobbelt filtrering, Konstruktioner","m³/h ",50,0]
["Filteranlæg, åbne filtre, dobbelt filtrering, Mek./EL","m³/h ",25,0]
["Filteranlæg, trykfiltre, enkelt filtrering","m³/h ",25,0]
["Filteranlæg, trykfiltre, dobbelt filtrering","m³/h ",25,0]
["Rentvandsbeholder  insitu støbt","m³",50,0]
["Rentvandsbeholder  element","m³",50,0]
["Udpumpningsanlæg, rentvandspumper på vandværk","m³/h ",25,0]
["Udpumpningsanlæg, frekvensomformer","kW",25,0]
["Udpumpningsanlæg, Hydrofor","liter",25,0]
["Skyllevand-/slamhåndteringsanlæg - lukkede betonbeholdere","m³",50,0]
["Skyllevand-/slamhåndteringsanl. - åbne med faste sider/bund","m³",50,0]
["Skyllevand-/slamhåndteringsanlæg - jordbassiner","m³",50,0]
["Skyllevandsbehandling, inkl. UV-filter mv., Mek./EL","m³/h.",25,0]
["Skyllevandsbehandling, inkl. UV-filter mv., SRO","m³/h.",10,0]
["Nødstrømsanlæg på vandværk","kW",25,0]
["Elanlæg og SRO-anlæg - vandværk, Elanlæg","m³/h.",25,0]
["Elanlæg og SRO-anlæg - vandværk, SRO","m³/h.",10,0]
["Vandværk 9"]
["Beluftningsanlæg, iltningstrappe, Konstruktioner","m³/h ",50,0]
["Beluftningsanlæg, iltningstrappe, Mek./EL","m³/h ",25,0]
["Beluftningsanlæg, ika-beluftning, Konstruktioner","m³/h ",50,0]
["Beluftningsanlæg, ika-beluftning, Mek./EL","m³/h ",25,0]
["Beluftningsanlæg, bundbeluftbning, Konstruktioner","m³/h ",50,0]
["Beluftningsanlæg, bundbeluftbning, Mek./EL","m³/h ",25,0]
["Beluftningsanlæg, rislebakke, Konstruktioner","m³/h ",50,0]
["Beluftningsanlæg, rislebakke, Mek./EL","m³/h ",25,0]
["Beluftningsanlæg, kompressorbeluftning","m³/h ",25,0]
["Beluftningsanlæg, ren ilt","m³/h ",25,0]
["Behandlingsanlæg, kalk anlæg","m³/h ",25,0]
["Behandlingsanlæg, luddosering","m³/h ",25,0]
["Filteranlæg, åbne filtre, enkelt filtrering, Konstruktioner","m³/h ",50,0]
["Filteranlæg, åbne filtre, enkelt filtrering, Mek./EL","m³/h ",25,0]
["Filteranlæg, åbne filtre, dobbelt filtrering, Konstruktioner","m³/h ",50,0]
["Filteranlæg, åbne filtre, dobbelt filtrering, Mek./EL","m³/h ",25,0]
["Filteranlæg, trykfiltre, enkelt filtrering","m³/h ",25,0]
["Filteranlæg, trykfiltre, dobbelt filtrering","m³/h ",25,0]
["Rentvandsbeholder  insitu støbt","m³",50,0]
["Rentvandsbeholder  element","m³",50,0]
["Udpumpningsanlæg, rentvandspumper på vandværk","m³/h ",25,0]
["Udpumpningsanlæg, frekvensomformer","kW",25,0]
["Udpumpningsanlæg, Hydrofor","liter",25,0]
["Skyllevand-/slamhåndteringsanlæg - lukkede betonbeholdere","m³",50,0]
["Skyllevand-/slamhåndteringsanl. - åbne med faste sider/bund","m³",50,0]
["Skyllevand-/slamhåndteringsanlæg - jordbassiner","m³",50,0]
["Skyllevandsbehandling, inkl. UV-filter mv., Mek./EL","m³/h.",25,0]
["Skyllevandsbehandling, inkl. UV-filter mv., SRO","m³/h.",10,0]
["Nødstrømsanlæg på vandværk","kW",25,0]
["Elanlæg og SRO-anlæg - vandværk, Elanlæg","m³/h.",25,0]
["Elanlæg og SRO-anlæg - vandværk, SRO","m³/h.",10,0]
["Vandværk 10"]
["Beluftningsanlæg, iltningstrappe, Konstruktioner","m³/h ",50,0]
["Beluftningsanlæg, iltningstrappe, Mek./EL","m³/h ",25,0]
["Beluftningsanlæg, ika-beluftning, Konstruktioner","m³/h ",50,0]
["Beluftningsanlæg, ika-beluftning, Mek./EL","m³/h ",25,0]
["Beluftningsanlæg, bundbeluftbning, Konstruktioner","m³/h ",50,0]
["Beluftningsanlæg, bundbeluftbning, Mek./EL","m³/h ",25,0]
["Beluftningsanlæg, rislebakke, Konstruktioner","m³/h ",50,0]
["Beluftningsanlæg, rislebakke, Mek./EL","m³/h ",25,0]
["Beluftningsanlæg, kompressorbeluftning","m³/h ",25,0]
["Beluftningsanlæg, ren ilt","m³/h ",25,0]
["Behandlingsanlæg, kalk anlæg","m³/h ",25,0]
["Behandlingsanlæg, luddosering","m³/h ",25,0]
["Filteranlæg, åbne filtre, enkelt filtrering, Konstruktioner","m³/h ",50,0]
["Filteranlæg, åbne filtre, enkelt filtrering, Mek./EL","m³/h ",25,0]
["Filteranlæg, åbne filtre, dobbelt filtrering, Konstruktioner","m³/h ",50,0]
["Filteranlæg, åbne filtre, dobbelt filtrering, Mek./EL","m³/h ",25,0]
["Filteranlæg, trykfiltre, enkelt filtrering","m³/h ",25,0]
["Filteranlæg, trykfiltre, dobbelt filtrering","m³/h ",25,0]
["Rentvandsbeholder  insitu støbt","m³",50,0]
["Rentvandsbeholder  element","m³",50,0]
["Udpumpningsanlæg, rentvandspumper på vandværk","m³/h ",25,0]
["Udpumpningsanlæg, frekvensomformer","kW",25,0]
["Udpumpningsanlæg, Hydrofor","liter",25,0]
["Skyllevand-/slamhåndteringsanlæg - lukkede betonbeholdere","m³",50,0]
["Skyllevand-/slamhåndteringsanl. - åbne med faste sider/bund","m³",50,0]
["Skyllevand-/slamhåndteringsanlæg - jordbassiner","m³",50,0]
["Skyllevandsbehandling, inkl. UV-filter mv., Mek./EL","m³/h.",25,0]
["Skyllevandsbehandling, inkl. UV-filter mv., SRO","m³/h.",10,0]
["Nødstrømsanlæg på vandværk","kW",25,0]
["Elanlæg og SRO-anlæg - vandværk, Elanlæg","m³/h.",25,0]
["Elanlæg og SRO-anlæg - vandværk, SRO","m³/h.",10,0]
["Beluftningsanlæg, iltningstrappe, Konstruktioner","m³/h ",50,0]
["Beluftningsanlæg, iltningstrappe, Mek./EL","m³/h ",25,0]
["Beluftningsanlæg, ika-beluftning, Konstruktioner","m³/h ",50,0]
["Beluftningsanlæg, ika-beluftning, Mek./EL","m³/h ",25,0]
["Beluftningsanlæg, bundbeluftbning, Konstruktioner","m³/h ",50,0]
["Beluftningsanlæg, bundbeluftbning, Mek./EL","m³/h ",25,0]
["Beluftningsanlæg, rislebakke, Konstruktioner","m³/h ",50,0]
["Beluftningsanlæg, rislebakke, Mek./EL","m³/h ",25,0]
["Beluftningsanlæg, kompressorbeluftning","m³/h ",25,0]
["Beluftningsanlæg, ren ilt","m³/h ",25,0]
["Behandlingsanlæg, kalk anlæg","m³/h ",25,0]
["Behandlingsanlæg, luddosering","m³/h ",25,0]
["Filteranlæg, åbne filtre, enkelt filtrering, Konstruktioner","m³/h ",50,0]
["Filteranlæg, åbne filtre, enkelt filtrering, Mek./EL","m³/h ",25,0]
["Filteranlæg, åbne filtre, dobbelt filtrering, Konstruktioner","m³/h ",50,0]
["Filteranlæg, åbne filtre, dobbelt filtrering, Mek./EL","m³/h ",25,0]
["Filteranlæg, trykfiltre, enkelt filtrering","m³/h ",25,0]
["Filteranlæg, trykfiltre, dobbelt filtrering","m³/h ",25,0]
["Rentvandsbeholder  insitu støbt","m³",50,0]
["Rentvandsbeholder  element","m³",50,0]
["Udpumpningsanlæg, rentvandspumper på vandværk","m³/h ",25,0]
["Udpumpningsanlæg, frekvensomformer","kW",25,0]
["Udpumpningsanlæg, Hydrofor","liter",25,0]
["Skyllevand-/slamhåndteringsanlæg - lukkede betonbeholdere","m³",50,0]
["Skyllevand-/slamhåndteringsanl. - åbne med faste sider/bund","m³",50,0]
["Skyllevand-/slamhåndteringsanlæg - jordbassiner","m³",50,0]
["Skyllevandsbehandling, inkl. UV-filter mv., Mek./EL","m³/h.",25,0]
["Skyllevandsbehandling, inkl. UV-filter mv., SRO","m³/h.",10,0]
["Nødstrømsanlæg på vandværk","kW",25,0]
["Elanlæg og SRO-anlæg - vandværk, Elanlæg","m³/h.",25,0]
["Elanlæg og SRO-anlæg - vandværk, SRO","m³/h.",10,0]
["Bygninger"]
["Etageareal vandbehandlingsbygning","m²",75,{"$f":"1103+29+104","v":1236},{"$f":"1236+107","v":1343}]
["Etageareal kontor og mandskabsfaciliteter","m²",75,{"$f":"62+235","v":297},{"$f":"61+297+121","v":479}]
["Værksted","m²",75,221,221]
["Lager","m²",75,0,0]
["Garage og rørlager","m²",75,250,{"$f":"250+32","v":282}]
["Bygning for trykforøgere","m²",75,{"$f":"35+104","v":139},139]
["Laboratorium (bygning, inkl. inventar+udstyr), Konstruktioner","m²",75,0,0]
["Laboratorium (bygning, inkl. inventar+udstyr), Mek./EL","m²",10,0,0]
["Andre"]
["Sikring (terror, hærværk), Mek./EL","stk.",25,0,0]
["Sikring (terror, hærværk), SRO","stk.",10,0,0]
["Sikring, mindre avanceret (hegn, porte), Mek./EL","stk.",25,2,2]
["Sikring, mindre avanceret (hegn, porte), SRO","stk.",10,0,0]
["Sikring, avanceret (hegn, porte og overvågningssystemer), Mek./EL","stk.",25,0,0]
["Sikring, avanceret (hegn, porte og overvågningssystemer), SRO","stk.",10,0,0]
[]
[]
[]
[]
[]
[]
[]
["FEJL"]

{"sheet":"Distributionsanlæg","index":1,"n_rows":182,"n_cols":6,"rows_kept":182,"cut":false,"hidden":false,"merged":[[0,5,1,5],[0,0,1,0],[0,1,1,1],[0,2,1,2],[0,3,1,3],[0,4,1,4]]}
["Distributionsanlæg","Enhed","Standard-levetid","Samlet mængde per 31/12-2014","Samlet mængde per 31/12-2015","Bemærk-ninger"]
[]
["Ledningsnet - Land"]
["Ledningsnet ≤ Ø50 mm","meter",75,11125,{"$f":"23572+11125","v":34697}]
["Ø 50mm < Ledningsnet ≤ Ø110 mm","meter",75,30785.8,{"$f":"4841+30785.8+12365","v":47991.8}]
["Ø110 mm < Ledningsnet ≤ Ø 250 mm","meter",75,14735.14,14735.14]
["Ø 250 mm < Ledningsnet ≤ Ø 500mm","meter",75,20849,20849]
["Ledningsnet > Ø 500 mm","meter",75,4670.87,4670.87]
["Støbejernsledninger ≤ Ø50 mm","meter",100,0,{"$f":"441+76+492","v":1009}]
["Støbejernsledninger Ø 50mm < Ledningsnet ≤ Ø110 mm","meter",100,0,2365]
["Støbejernsledninger Ø110 mm < Ledningsnet ≤ Ø 250 mm","meter",100,0,0]
["Støbejernsledninger Ø 250 mm < Ledningsnet ≤ Ø 500mm","meter",100,0,0]
["Støbejernsledninger Ledningsnet > Ø 500 mm","meter",100,0,0]
["Eternitledninger ≤ Ø50 mm","meter",75,0,0]
["Eternitledninger Ø 50mm < Ledningsnet ≤ Ø110 mm","meter",75,0,0]
["Eternitledninger Ø110 mm < Ledningsnet ≤ Ø 250 mm","meter",75,0,0]
["Eternitledninger Ø 250 mm < Ledningsnet ≤ Ø 500mm","meter",75,207.03,207.03]
["Eternitledninger Ledningsnet > Ø 500 mm","meter",75,0,0]
["Skelbrønd, Konstruktioner","stk.",50,0,0]
["Skelbrønd, Mek./EL","stk.",15,0,0]
["Inspektionsbrønd, Konstruktioner","stk.",50,0,0]
["Inspektionsbrønd, Mek./EL","stk.",15,0,0]
["Stik på ledningsnet, Konstruktioner","stk.",75,461,{"$f":"500+461","v":961}]
["Stik på ledningsnet, Mek./EL","stk.",75,461,{"$f":"500+461","v":961}]
["Ledningsnet - By"]
["Ledningsnet ≤ Ø50 mm","meter",75,22352,{"$f":"2785+22353","v":25138}]
["Ø 50mm < Ledningsnet ≤ Ø110 mm","meter",75,{"$f":"46307-D32","v":36066},{"$f":"36066+762","v":36828}]
["Ø110 mm < Ledningsnet ≤ Ø 250 mm","meter",75,{"$f":"47746-D33","v":40657},{"$f":"47746-E33","v":40657}]
["Ø 250 mm < Ledningsnet ≤ Ø 500mm","meter",75,{"$f":"28927-D34","v":28516},{"$f":"28927-E34","v":28516}]
["Ledningsnet > Ø 500 mm","meter",75,8723.25,8723.25]
["Støbejernsledninger ≤ Ø50 mm","meter",100,0,{"$f":"1537+247","v":1784}]
["Støbejernsledninger Ø 50mm < Ledningsnet ≤ Ø110 mm","meter",100,10241,{"$f":"825+10241","v":11066}]
["Støbejernsledninger Ø110 mm < Ledningsnet ≤ Ø 250 mm","meter",100,7089,7089]
["Støbejernsledninger Ø 250 mm < Ledningsnet ≤ Ø 500mm","meter",100,411,411]
["Støbejernsledninger Ledningsnet > Ø 500 mm","meter",100,0,0]
["Eternitledninger ≤ Ø50 mm","meter",75,0,0]
["Eternitledninger Ø 50mm < Ledningsnet ≤ Ø110 mm","meter",75,0,0]
["Eternitledninger Ø110 mm < Ledningsnet ≤ Ø 250 mm","meter",75,0,0]
["Eternitledninger Ø 250 mm < Ledningsnet ≤ Ø 500mm","meter",75,0,0]
["Eternitledninger Ledningsnet > Ø 500 mm","meter",75,0,0]
["Skelbrønd, Konstruktioner","stk.",50,0,0]
["Skelbrønd, Mek./EL","stk.",15,0,0]
["Inspektionsbrønd, Konstruktioner","stk.",50,0,5]
["Inspektionsbrønd, Mek./EL","stk.",15,0,5]
["Stik på ledningsnet, Konstruktioner","stk.",75,3417,{"$f":"159+3417+54","v":3630}]
["Stik på ledningsnet, Mek./EL","stk.",75,{"$f":"+D45","v":3417},{"$f":"+E45","v":3630}]
["Ledningsnet - City"]
["Ledningsnet ≤ Ø50 mm","meter",75,{"$f":"52.46+7.82+43.59+1032.7+341","v":1477.5700000000002},{"$f":"52.46+7.82+43.59+1032.7+341","v":1477.5700000000002}]
["Ø 50mm < Ledningsnet ≤ Ø110 mm","meter",75,{"$f":"307.71+313.62+1.36+200.57+168.4+1380.95+292.88","v":2665.4900000000002},{"$f":"307.71+313.62+1.36+200.57+168.4+1380.95+292.88","v":2665.4900000000002}]
["Ø110 mm < Ledningsnet ≤ Ø 250 mm","meter",75,{"$f":"1323.18+372.32+432.4+13.87+507.8","v":2649.57},{"$f":"1323.18+372.32+432.4+13.87+507.8","v":2649.57}]
["Ø 250 mm < Ledningsnet ≤ Ø 500mm","meter",75,{"$f":"20.87+477.91+545.2","v":1043.98},{"$f":"20.87+477.91+545.2","v":1043.98}]
["Ledningsnet > Ø 500 mm","meter",75,0,0]
["Støbejernsledninger ≤ Ø50 mm","meter",100,0,0]
["Støbejernsledninger Ø 50mm < Ledningsnet ≤ Ø110 mm","meter",100,0,0]
["Støbejernsledninger Ø110 mm < Ledningsnet ≤ Ø 250 mm","meter",100,0,0]
["Støbejernsledninger Ø 250 mm < Ledningsnet ≤ Ø 500mm","meter",100,0,0]
["Støbejernsledninger Ledningsnet > Ø 500 mm","meter",100,0,0]
["Eternitledninger ≤ Ø50 mm","meter",75,0,0]
["Eternitledninger Ø 50mm < Ledningsnet ≤ Ø110 mm","meter",75,0,0]
["Eternitledninger Ø110 mm < Ledningsnet ≤ Ø 250 mm","meter",75,0,0]
["Eternitledninger Ø 250 mm < Ledningsnet ≤ Ø 500mm","meter",75,0,0]
["Eternitledninger Ledningsnet > Ø 500 mm","meter",75,0,0]
["Skelbrønd, Konstruktioner","stk.",50,0,0]
["Skelbrønd, Mek./EL","stk.",15,0,0]
["Inspektionsbrønd, Konstruktioner","stk.",50,0,0]
["Inspektionsbrønd, Mek./EL","stk.",15,0,0]
["Stik på ledningsnet, Konstruktioner","stk.",75,382,382]
["Stik på ledningsnet, Mek./EL","stk.",75,382,382]
["Ledningsnet - Indre city"]
["Ledningsnet ≤ Ø50 mm","meter",75,0]
["Ø 50mm < Ledningsnet ≤ Ø110 mm","meter",75,0]
["Ø110 mm < Ledningsnet ≤ Ø 250 mm","meter",75,0]
["Ø 250 mm < Ledningsnet ≤ Ø 500mm","meter",75,0]
["Ledningsnet > Ø 500 mm","meter",75,0]
["Støbejernsledninger ≤ Ø50 mm","meter",100,0]
["Støbejernsledninger Ø 50mm < Ledningsnet ≤ Ø110 mm","meter",100,0]
["Støbejernsledninger Ø110 mm < Ledningsnet ≤ Ø 250 mm","meter",100,0]
["Støbejernsledninger Ø 250 mm < Ledningsnet ≤ Ø 500mm","meter",100,0]
["Støbejernsledninger Ledningsnet > Ø 500 mm","meter",100,0]
["Eternitledninger ≤ Ø50 mm","meter",75,0]
["Eternitledninger Ø 50mm < Ledningsnet ≤ Ø110 mm","meter",75,0]
["Eternitledninger Ø110 mm < Ledningsnet ≤ Ø 250 mm","meter",75,0]
["Eternitledninger Ø 250 mm < Ledningsnet ≤ Ø 500mm","meter",75,0]
["Eternitledninger Ledningsnet > Ø 500 mm","meter",75,0]
["Skelbrønd, Konstruktioner","stk.",50,0]
["Skelbrønd, Mek./EL","stk.",15,0]
["Inspektionsbrønd, Konstruktioner","stk.",50,0]
["Inspektionsbrønd, Mek./EL","stk.",15,0]
["Stik på ledningsnet, Konstruktioner","stk.",75,0]
["Stik på ledningsnet, Mek./EL","stk.",75,0]
["Ventiler"]
["Ventiler på ledningsnet ≤ Ø50 mm","stk.",75,{"$f":"3366+30","v":3396},{"$f":"3366+30","v":3396}]
["Ventiler på Ø 50mm < Ledningsnet ≤ Ø110 mm","stk.",75,{"$f":"700+20","v":720},{"$f":"700+20","v":720}]
["Ventiler på Ø110 mm < Ledningsnet ≤ Ø 250 mm","stk.",75,{"$f":"150+10","v":160},165]
["Ventiler på Ø 250 mm < Ledningsnet ≤ Ø 500mm","stk.",75,54,54]
["Ventiler på ledningsnet > Ø 500 mm","stk.",75,6,6]
["Pumpestationer, bygværker og bassiner 1"]
["Pumpestation (inkl. evt. hydrofor)/trykforøger, Konstruktioner","m³/h ",50,0,0]
["Pumpestation (inkl. evt. hydrofor)/trykforøger, Mek./EL","m³/h ",25,0,0]
["Pumpestation (inkl. evt. hydrofor)/trykforøger, SRO","m³/h ",10,0,0]
["Beholderanlæg - højdebeholder","m³",50,4000,4000,"Polkatal"]
["Beholderanlæg - vandtårn","m³",50,400,400,"Stadig vores"]
["Pumpestationer, bygværker og bassiner 2"]
["Pumpestation (inkl. evt. hydrofor)/trykforøger, Konstruktioner","m³/h ",50,114,114,"trykforøger vandtårn"]
["Pumpestation (inkl. evt. hydrofor)/trykforøger, Mek./EL","m³/h ",25,114,114]
["Pumpestation (inkl. evt. hydrofor)/trykforøger, SRO","m³/h ",10,114,114]
["Beholderanlæg - højdebeholder","m³",50,0,0]
["Beholderanlæg - vandtårn","m³",50,0,0]
["Pumpestationer, bygværker og bassiner 3"]
["Pumpestation (inkl. evt. hydrofor)/trykforøger, Konstruktioner","m³/h ",50,45,45,"Klosterparkvej"]
["Pumpestation (inkl. evt. hydrofor)/trykforøger, Mek./EL","m³/h ",25,45,45]
["Pumpestation (inkl. evt. hydrofor)/trykforøger, SRO","m³/h ",10,45,45]
["Beholderanlæg - højdebeholder","m³",50,0,0]
["Beholderanlæg - vandtårn","m³",50,0,0]
["Pumpestationer, bygværker og bassiner 4"]
["Pumpestation (inkl. evt. hydrofor)/trykforøger, Konstruktioner","m³/h ",50,17,17,"Bjergsted"]
["Pumpestation (inkl. evt. hydrofor)/trykforøger, Mek./EL","m³/h ",25,17,17]
["Pumpestation (inkl. evt. hydrofor)/trykforøger, SRO","m³/h ",10,17,17]
["Beholderanlæg - højdebeholder","m³",50,0,0]
["Beholderanlæg - vandtårn","m³",50,0,0]
["Pumpestationer, bygværker og bassiner 5",null,null,null,null,"Sejerø1"]
["Pumpestation (inkl. evt. hydrofor)/trykforøger, Konstruktioner","m³/h ",50,0,0]
["Pumpestation (inkl. evt. hydrofor)/trykforøger, Mek./EL","m³/h ",25,0,15]
["Pumpestation (inkl. evt. hydrofor)/trykforøger, SRO","m³/h ",10,0,15]
["Beholderanlæg - højdebeholder","m³",50,0,50]
["Beholderanlæg - vandtårn","m³",50,0,0]
["Pumpestationer, bygværker og bassiner 6",null,null,null,null,"Sejerø2"]
["Pumpestation (inkl. evt. hydrofor)/trykforøger, Konstruktioner","m³/h ",50,0,0]
["Pumpestation (inkl. evt. hydrofor)/trykforøger, Mek./EL","m³/h ",25,0,15]
["Pumpestation (inkl. evt. hydrofor)/trykforøger, SRO","m³/h ",10,0,15]
["Beholderanlæg - højdebeholder","m³",50,0,50]
["Beholderanlæg - vandtårn","m³",50,0,0]
["Pumpestationer, bygværker og bassiner 7",null,null,null,null,"Sejerø3"]
["Pumpestation (inkl. evt. hydrofor)/trykforøger, Konstruktioner","m³/h ",50,0,0]
["Pumpestation (inkl. evt. hydrofor)/trykforøger, Mek./EL","m³/h ",25,0,20]
["Pumpestation (inkl. evt. hydrofor)/trykforøger, SRO","m³/h ",10,0,20]
["Beholderanlæg - højdebeholder","m³",50,0,50]
["Beholderanlæg - vandtårn","m³",50,0,0]
["Pumpestationer, bygværker og bassiner 8"]
["Pumpestation (inkl. evt. hydrofor)/trykforøger, Konstruktioner","m³/h ",50,0]
["Pumpestation (inkl. evt. hydrofor)/trykforøger, Mek./EL","m³/h ",25,0]
["Pumpestation (inkl. evt. hydrofor)/trykforøger, SRO","m³/h ",10,0]
["Beholderanlæg - højdebeholder","m³",50,0]
["Beholderanlæg - vandtårn","m³",50,0]
["Pumpestationer, bygværker og bassiner 9"]
["Pumpestation (inkl. evt. hydrofor)/trykforøger, Konstruktioner","m³/h ",50,0]
["Pumpestation (inkl. evt. hydrofor)/trykforøger, Mek./EL","m³/h ",25,0]
["Pumpestation (inkl. evt. hydrofor)/trykforøger, SRO","m³/h ",10,0]
["Beholderanlæg - højdebeholder","m³",50,0]
["Beholderanlæg - vandtårn","m³",50,0]
["Pumpestationer, bygværker og bassiner 10"]
["Pumpestation (inkl. evt. hydrofor)/trykforøger, Konstruktioner","m³/h ",50,0]
["Pumpestation (inkl. evt. hydrofor)/trykforøger, Mek./EL","m³/h ",25,0]
["Pumpestation (inkl. evt. hydrofor)/trykforøger, SRO","m³/h ",10,0]
["Beholderanlæg - højdebeholder","m³",50,0]
["Beholderanlæg - vandtårn","m³",50,0]
["Pumpestation (inkl. evt. hydrofor)/trykforøger, Konstruktioner","m³/h ",50,0]
["Pumpestation (inkl. evt. hydrofor)/trykforøger, Mek./EL","m³/h ",25,0]
["Pumpestation (inkl. evt. hydrofor)/trykforøger, SRO","m³/h ",10,0]
["Beholderanlæg - højdebeholder","m³",50,0]
["Beholderanlæg - vandtårn","m³",50,0]
["Andre"]
["Afregningsmålere, mekaniske, ","stk.",8,4165,{"$f":"500+35+124","v":659},"2014 fejl"]
["Afregningsmålere, elektroniske ≤ Ø 110mm (Qn 10)","stk.",10,0,{"$f":"54+4165-16","v":4203}]
["Afregningsmålere, elektroniske > Ø110 mm","stk.",10,0,16]
["SRO-brønd/kvarterbrønd/sektionsbrønd, Konstruktioner","stk.",50,10,15]
["SRO-brønd/kvarterbrønd/sektionsbrønd, Mek./EL","stk.",15,10,15]
["SRO-brønd/kvarterbrønd/sektionsbrønd, SRO","stk.",10,10,15]
[]
[]
[]
[]
[]
[]
[]
[]
[]
[]
[]
[]
[]
["FEJL"]

{"sheet":"Fællesfunktionsanlæg","index":2,"n_rows":11,"n_cols":6,"rows_kept":11,"cut":false,"hidden":false,"merged":[[0,5,1,5],[0,0,1,0],[0,1,1,1],[0,2,1,2],[0,3,1,3],[0,4,1,4]]}
["Fællesfunktionsanlæg","Enhed","Standard-levetid","Samlet mængde per 31/12-2014","Samlet mængde per 31/12-2015","Bemærk-ninger"]
[]
["Andre"]
["Køretøjer, personbil","stk.",5,1,2]
["Køretøjer, små lastvogne (< 3.500 kg.)","stk.",5,4,5]
["Køretøjer, store lastvogne (> 3.500 kg.)","stk.",5,1,1]
["Køretøjer, entreprenørmaskiner","stk.",5,5,6]
["Øvrige"]
["Solcelleanlæg","KWh",25,0,0]
["EDB, tablets og navigationsudstyr","stk.",5,{"$f":"12*3+6","v":42},{"$f":"42+3+3","v":48}]
["Elektroniske kort","stk.",5,6,48]

{"sheet":"Drop downliste","index":3,"n_rows":13,"n_cols":11,"rows_kept":13,"cut":false,"hidden":true,"merged":[]}
[]
[null,"datakvalitet","Serviceselskab","Overheads","Infrastrukturomlægninger","Infrastruktur per år","år 1","år 2","år 3","år 4","år 5"]
[null,null,null,null,null,null,2010,2011,2012,2013,2014]
[null,1,"ja","Full-cost","ja",0.1]
[null,2,"nej","Direct-cost","nej",0.2]
[null,3,null,"Nøgletalsfordeling",null,0.3]
[null,null,null,"Activity based cost",null,0.4]
[null,null,null,"Andet",null,0.5]
[null,null,null,null,null,0.6]
[null,null,null,null,null,0.7]
[null,null,null,null,null,0.8]
[null,null,null,null,null,0.9]
[null,null,null,null,null,1]